bitfinex-derivatives/quotes_ETHF0:USTF0_20210111
["timestamp","ask_amount","ask_price","bid_price","bid_amount"]
[1610337783413,2.3888,1122.8,1120.1,71.2438]
[1610337783613,30.0,1122.7,1120.1,71.2438]
[1610337784013,4.00959,1120.5,1120.1,71.2438]
[1610337784615,4.00959,1120.5,1120.1,1.5109]
[1610337784815,4.00959,1120.5,1118.9,2.4197]
[1610337784816,6.08849,1120.5,1118.9,2.4197]
[1610337785215,6.08849,1120.5,1117.7,2.3442]
[1610337785414,6.08849,1120.5,1117.0,2.0088]
[1610337785614,6.08849,1120.5,1116.7,0.21618161]
[1610337785814,7.87139,1120.5,1116.7,0.21618161]
[1610337786014,7.87139,1120.5,1116.4,0.86472646]
[1610337786015,4.00959,1119.0,1116.4,0.21687065]
[1610337786415,4.00959,1119.0,1116.6,0.2170975]
[1610337786615,4.00959,1119.0,1116.6,1.9196975]
[1610337787016,4.00959,1119.0,1116.6,1.7026]
[1610337788016,4.00959,1118.8,1118.2,4.00959]
[1610337788417,4.00959,1118.8,1116.7,1.36178988]
[1610337789719,1.6511,1119.8,1116.7,1.36178988]
[1610337789917,4.00959,1119.5,1118.9,4.00959]
[1610337790117,4.00959,1119.5,1118.9,6.34179]
[1610337791120,4.00959,1119.5,1118.9,2.3322]
[1610337791920,4.00959,1119.0,1118.9,2.3322]
[1610337793121,5.77749,1119.0,1118.9,2.3322]
[1610337794120,1.7679,1119.0,1118.9,2.3322]
[1610337794721,1.8555,1119.9,1118.9,2.3322]
[1610337795321,1.8555,1119.9,1116.6,1.7026]
[1610337795522,1.8555,1119.9,1116.2,0.21668228]
[1610337795722,63.9857,1119.9,1116.9,72.1553]
[1610337795922,63.9857,1119.9,1116.9,74.5203]
[1610337796123,4.00959,1118.6,1116.9,74.5203]
[1610337796522,4.00959,1118.6,1117.0,1.36165157]
[1610337798124,4.00959,1118.1,1117.9,4.00959]
[1610337798524,4.00959,1118.1,1117.0,1.36165157]
[1610337799724,35.90909,1118.1,1117.0,1.36165157]
[1610337799924,5.90909,1118.1,1117.0,1.36165157]
[1610337800127,4.00959,1117.1,1116.9,2.365]
[1610337800325,4.00959,1117.1,1116.9,1.7125]
[1610337800525,4.00959,1117.1,1115.5,4.00959]
[1610337801528,1.8499,1117.5,1115.5,4.00959]
[1610337801728,1.8499,1117.5,1115.5,5.53619]
[1610337801928,1.8499,1117.5,1115.6,1.36369565]
[1610337803332,31.8499,1117.5,1115.6,1.36369565]
[1610337803530,30.0,1117.4,1115.6,1.36369565]
[1610337803732,31.7901,1117.4,1115.5,0.6592]
[1610337804032,4.00959,1115.6,1113.9,0.22530711]
[1610337804632,4.00959,1115.6,1113.8,0.225819]
[1610337805032,4.00959,1115.6,1113.6,0.22650143]
[1610337805234,4.00959,1115.6,1113.5,0.22664586]
[1610337805934,4.00959,1115.6,1113.7,1.36528198]
[1610337806136,4.00959,1114.8,1113.7,3.24148198]
[1610337807336,4.00959,1114.8,1113.8,1.36561405]
[1610337808138,4.00959,1114.4,1113.8,5.37520405]
[1610337808339,62.4429,1115.9,1113.8,5.37520405]
[1610337810039,4.00959,1115.7,1115.5,4.00959]
[1610337810240,4.00959,1115.7,1113.9,1.36541004]
[1610337811439,4.00959,1115.7,1113.8,1.36531952]
[1610337812039,4.00959,1115.7,1115.4,4.00959]
[1610337812241,62.4429,1115.9,1115.4,6.01929]
[1610337813042,6.0738,1119.6,1115.4,6.01929]
[1610337813442,30.0,1119.5,1115.4,6.01929]
[1610337813641,32.3426,1119.5,1115.4,6.01929]
[1610337814041,4.00959,1116.7,1116.4,4.00959]
[1610337814441,1.8611,1118.3,1116.4,4.00959]
[1610337814642,1.8611,1118.3,1116.4,5.89659]
[1610337815943,64.6441,1118.6,1116.4,5.89659]
[1610337816143,4.00959,1118.4,1118.1,4.00959]
[1610337816544,4.00959,1118.4,1118.1,5.90959]
[1610337816743,64.6441,1118.6,1118.1,5.90959]
[1610337816943,27.25895921,1124.1,1118.1,5.90959]
[1610337816944,65.9671,1119.5,1118.1,5.90959]
[1610337817142,27.09459135,1123.3,1118.1,5.90959]
[1610337817344,7.7726,1122.8,1118.1,5.90959]
[1610337817544,30.0,1122.7,1118.1,5.90959]
[1610337817744,31.9024,1122.7,1118.1,5.90959]
[1610337818145,4.00959,1119.8,1119.0,4.00959]
[1610337819946,2.4834,1121.2,1119.0,4.00959]
[1610337820146,4.00959,1120.2,1119.9,4.00959]
[1610337820547,5.78319,1120.2,1119.9,4.00959]
[1610337820745,4.00959,1120.2,1119.0,1.6719]
[1610337821545,4.2739,1121.2,1119.0,1.6719]
[1610337822046,4.00959,1120.4,1120.2,4.00959]
[1610337822249,2.4834,1121.2,1120.2,4.00959]
[1610337822447,48.5285,1121.7,1120.2,4.00959]
[1610337822647,69.1921,1122.2,1120.2,5.78019]
[1610337824048,69.1921,1122.2,1120.8,4.00959]
[1610337824049,4.00959,1121.1,1120.8,4.00959]
[1610337824848,1.6901,1121.8,1120.8,4.00959]
[1610337825050,69.1921,1122.2,1120.8,5.76059]
[1610337826050,69.1921,1122.2,1121.7,4.00959]
[1610337826450,69.1921,1122.2,1121.7,1.9343]
[1610337827452,4.00959,1122.4,1121.7,1.9343]
[1610337827852,4.00959,1122.4,1121.3,2.0379]
[1610337828052,4.00959,1121.9,1121.3,6.04749]
[1610337829252,2.61774953,1123.3,1121.3,6.04749]
[1610337829953,0.92914953,1123.3,1121.3,6.04749]
[1610337830153,0.92914953,1123.3,1121.3,2.0379]
[1610337830154,4.00959,1121.6,1121.3,2.0379]
[1610337832156,4.00959,1121.4,1121.3,2.0379]
[1610337832557,4.00959,1121.4,1121.3,1.5004]
[1610337832958,4.00959,1121.4,1120.8,1.751]
[1610337833160,14.50689,1121.4,1120.2,1.7706]
[1610337833361,4.00959,1121.4,1120.2,1.7706]
[1610337833561,4.00959,1121.4,1119.0,1.6719]
[1610337833761,4.00959,1121.4,1118.5,0.23633902]
[1610337834160,4.00959,1118.9,1118.7,4.00959]
[1610337834360,2.41,1121.1,1118.7,4.00959]
[1610337834560,2.41,1121.1,1118.7,2.3042]
[1610337834961,30.0,1121.0,1118.7,2.3042]
[1610337835760,30.0,1121.0,1118.7,1.3415]
[1610337836160,4.00959,1118.8,1117.2,0.23820694]
[1610337836360,4.00959,1118.8,1117.1,0.2382671]
[1610337836559,4.00959,1118.8,1117.0,0.23796284]
[1610337836759,4.00959,1118.8,1117.3,1.36097717]
[1610337836961,4.00959,1118.8,1117.3,3.71097717]
[1610337838162,4.00959,1117.6,1117.4,4.00959]
[1610337838362,4.00959,1117.6,1117.4,5.37076944]
[1610337839663,4.00959,1117.6,1117.4,1.36117944]
[1610337840265,4.00959,1117.6,1117.5,1.3613332]
[1610337841267,4.00959,1117.6,1117.3,1.6997332]
[1610337841466,4.00959,1117.6,1117.3,0.7090332]
[1610337841966,4.00959,1117.6,1116.2,0.46902546]
[1610337841967,31.08069,1118.6,1116.2,0.23484703]
[1610337842166,4.00959,1116.3,1116.2,2.04374703]
[1610337842366,1.08069,1118.6,1116.2,1.8089]
[1610337843066,1.08069,1118.6,1116.2,3.17173197]
[1610337844269,4.00959,1117.3,1116.2,3.17173197]
[1610337844469,4.00959,1117.3,1116.3,1.36280793]
[1610337844870,2.3033,1117.7,1116.3,1.36280793]
[1610337845470,54.2682,1117.9,1116.3,1.36280793]
[1610337846072,51.8332,1118.6,1116.3,1.36280793]
[1610337846274,51.8332,1118.6,1117.8,4.00959]
[1610337846471,51.8332,1118.6,1117.8,5.53749]
[1610337846671,51.8332,1118.6,1117.8,1.5279]
[1610337848272,51.8332,1118.6,1118.5,6.01469]
[1610337848472,5.8144,1120.5,1118.5,6.01469]
[1610337848671,26.13768751,1124.5,1118.5,6.01469]
[1610337848874,30.0,1122.3,1118.5,6.01469]
[1610337849072,5.7971,1121.8,1118.5,6.01469]
[1610337849272,1.8955,1121.8,1118.5,6.01469]
[1610337850675,1.8955,1121.8,1118.5,2.0051]
[1610337850875,1.8955,1121.8,1118.5,1.9157]
[1610337851076,1.8955,1121.8,1117.8,1.5279]
[1610337851278,30.0,1120.2,1117.8,1.5279]
[1610337851479,30.0,1120.2,1117.2,0.22868389]
[1610337851677,39.0,1120.2,1116.7,0.45877044]
[1610337851877,39.0,1120.2,1116.4,0.22993605]
[1610337852077,30.0,1118.9,1116.4,0.22993605]
[1610337852277,4.00959,1116.5,1116.4,0.22993605]
[1610337852478,4.00959,1116.5,1116.2,1.8089]
[1610337852678,4.00959,1116.5,1116.0,0.4595024]
[1610337852877,4.00959,1116.5,1115.7,0.45997811]
[1610337853077,4.00959,1116.5,1115.6,0.4601564]
[1610337853877,4.00959,1116.5,1115.5,0.4594185]
[1610337854079,4.00959,1116.5,1115.7,1.36252135]
[1610337854277,1.5446,1116.8,1115.8,4.00959]
[1610337855381,1.5446,1116.8,1115.9,1.3628232]
[1610337856085,1.5446,1116.8,1115.9,3.0723232]
[1610337856281,1.5446,1116.8,1116.7,4.00959]
[1610337856481,4.00959,1117.6,1116.7,5.60399]
[1610337858083,4.00959,1117.6,1116.7,1.5944]
[1610337858282,2.3651,1117.8,1116.7,1.5944]
[1610337858684,2.3651,1117.8,1116.8,1.362614]
[1610337858882,2.3651,1117.8,1116.8,0.364314]
[1610337859286,2.3651,1117.8,1116.7,0.998314]
[1610337860186,4.00959,1117.2,1116.9,4.00959]
[1610337860687,2.3651,1117.8,1116.9,4.00959]
[1610337860887,2.4849,1119.0,1116.9,4.00959]
[1610337861087,6.2148,1120.2,1116.9,4.00959]
[1610337861489,70.5265,1119.5,1117.0,1.36225105]
[1610337861689,72.6295,1119.5,1117.0,1.36225105]
[1610337862290,4.00959,1118.8,1118.3,4.00959]
[1610337862490,2.1552,1119.2,1118.3,4.00959]
[1610337863290,72.6295,1119.5,1118.3,4.00959]
[1610337863691,70.5265,1119.5,1118.3,4.00959]
[1610337864090,56.5288,1120.4,1118.3,4.00959]
[1610337864290,4.00959,1120.2,1119.6,4.00959]
[1610337866194,4.00959,1120.7,1120.0,4.00959]
[1610337866394,4.00959,1120.7,1120.0,5.74709]
[1610337868296,4.00959,1120.7,1120.5,4.00959]
[1610337868697,65.3684,1121.3,1120.5,4.00959]
[1610337869096,30.0,1122.9,1120.5,4.00959]
[1610337869097,72.0775,1121.9,1120.5,4.00959]
[1610337870298,4.00959,1121.5,1121.0,4.00959]
[1610337870498,5.94809,1121.5,1121.0,4.00959]
[1610337871298,1.9385,1121.5,1121.0,4.00959]
[1610337871498,1.575,1121.8,1121.0,4.00959]
[1610337872300,4.00959,1121.5,1121.2,4.00959]
[1610337872900,1.575,1121.8,1121.2,4.00959]
[1610337873899,2.68614953,1123.3,1121.2,6.45909]
[1610337874299,4.00959,1122.0,1121.9,4.00959]
[1610337874701,2.2485,1122.4,1121.2,2.4495]
[1610337876403,2.2485,1122.4,1120.8,1.8343]
[1610337876803,4.0543,1122.4,1120.4,2.0097]
[1610337877003,2.2485,1122.4,1120.0,1.7375]
[1610337877204,2.2485,1122.4,1119.3,0.23300673]
[1610337877805,2.2485,1122.4,1119.2,0.23316083]
[1610337878205,4.00959,1121.8,1121.3,4.00959]
[1610337878605,6.07149,1121.8,1121.3,4.00959]
[1610337878805,6.07149,1121.8,1119.4,1.3583131]
[1610337880210,4.00959,1121.3,1120.7,4.00959]
[1610337880809,2.0619,1121.8,1120.7,4.00959]
[1610337881008,1.8885,1122.1,1120.7,4.00959]
[1610337881209,1.8885,1122.1,1120.7,5.91419]
[1610337882210,4.00959,1121.4,1121.3,4.00959]
[1610337882410,4.00959,1121.4,1120.7,1.9046]
[1610337882610,4.00959,1121.4,1120.8,1.35806105]
[1610337882811,1.8885,1122.1,1120.8,1.35806105]
[1610337883813,1.8885,1122.1,1120.8,0.64376105]
[1610337884014,1.8885,1122.1,1120.8,0.10816105]
[1610337884214,4.00959,1120.9,1120.8,0.10816105]
[1610337884415,4.00959,1120.9,1120.7,6.105e-05]
[1610337885015,4.00959,1120.9,1120.0,4.00959]
[1610337885417,4.00959,1120.9,1120.1,1.35894458]
[1610337886216,4.00959,1120.2,1120.1,1.35894458]
[1610337886819,4.00959,1120.2,1120.0,5.80369]
[1610337887619,2.3723,1121.0,1120.0,5.80369]
[1610337888124,1.7818,1121.2,1120.0,5.80369]
[1610337888321,4.00959,1120.8,1120.1,1.35909923]
[1610337890323,1.7925,1121.2,1120.2,4.00959]
[1610337891124,1.7925,1121.2,1120.1,1.35909923]
[1610337892324,4.00959,1120.2,1120.1,9.923e-05]
[1610337892924,4.00959,1120.2,1120.0,1.66059923]
[1610337893227,4.00959,1120.2,1120.0,9.923e-05]
[1610337893427,4.00959,1120.2,1118.8,74.4062]
[1610337894327,4.00959,1120.0,1119.8,4.00959]
[1610337894529,4.00959,1120.0,1118.8,74.4062]
[1610337894727,4.00959,1120.0,1118.1,0.69537457]
[1610337894728,4.00959,1120.0,1118.1,67.64966849]
[1610337895130,4.00959,1120.0,1118.1,67.4182]
[1610337895131,5.75049,1120.0,1118.1,67.4182]
[1610337895529,7.52699,1120.0,1119.9,1.36074901]
[1610337895730,7.52699,1120.0,1119.9,0.46334901]
[1610337896128,7.52699,1120.0,1118.7,1.9704]
[1610337896330,7.52699,1120.0,1118.1,67.4182]
[1610337896331,4.00959,1118.8,1118.4,1.9576]
[1610337896730,4.00959,1118.8,1118.4,1.4943]
[1610337897531,4.00959,1118.8,1118.1,67.4182]
[1610337897931,4.00959,1118.8,1117.1,0.23115273]
[1610337898333,1.8095,1119.1,1118.2,1.3612092]
[1610337898531,1.8095,1119.1,1116.3,2.76024768]
[1610337898731,1.8095,1119.1,1116.6,2.43883886]
[1610337898931,56.4111,1118.7,1116.6,1.7451]
[1610337899132,58.6916,1118.7,1116.6,1.7451]
[1610337899832,58.6916,1118.7,1116.7,1.36190474]
[1610337900032,60.4786,1118.7,1116.7,1.36190474]
[1610337900432,4.00959,1117.8,1117.3,4.00959]
[1610337901533,5.78179,1117.8,1117.3,4.00959]
[1610337901934,1.7722,1117.8,1117.3,4.00959]
[1610337902135,2.4257,1118.4,1117.3,4.00959]
[1610337902335,2.4257,1118.4,1118.3,4.00959]
[1610337902535,4.00959,1118.6,1118.3,4.00959]
[1610337903336,5.81429,1118.6,1118.3,4.00959]
[1610337903535,2.1279,1119.4,1118.3,4.00959]
[1610337903735,56.198,1119.8,1118.3,4.00959]
[1610337904338,4.00959,1118.8,1118.3,4.00959]
[1610337904538,5.79449,1118.8,1118.3,4.00959]
[1610337904739,4.00959,1118.8,1118.3,4.00959]
[1610337906344,2.5121,1119.2,1118.7,4.00959]
[1610337906743,56.198,1119.8,1118.7,5.97779]
[1610337908346,1.7785,1120.0,1119.7,4.00959]
[1610337909946,68.7719,1120.8,1119.7,4.00959]
[1610337910351,68.7719,1120.8,1120.6,4.00959]
[1610337910750,68.7719,1120.8,1120.6,5.54219]
[1610337911648,68.7719,1120.8,1120.6,1.5326]
[1610337913250,70.5339,1120.8,1120.6,1.5326]
[1610337913450,70.5339,1120.8,1120.3,1.6018]
[1610337916058,70.5523,1120.8,1120.3,3.4044]
[1610337916456,70.5523,1120.8,1120.7,4.00959]
[1610337916656,70.5523,1120.8,1120.7,5.77799]
[1610337916856,70.5523,1120.8,1120.7,4.00959]
[1610337917057,70.5523,1120.8,1120.6,1.6238]
[1610337917758,1.7804,1120.8,1120.6,1.6238]
[1610337918358,4.00959,1120.7,1120.6,1.6238]
[1610337918959,4.00959,1120.7,1120.6,1.2727]
[1610337919559,4.00959,1120.7,1120.6,0.1494]
[1610337920561,4.00959,1120.7,1119.6,2.5114]
[1610337920761,4.00959,1120.7,1119.4,60.5733]
[1610337921363,70.0029,1120.3,1118.7,1.9682]
[1610337921564,71.7691,1120.3,1117.9,53.96563725]
[1610337921767,71.7691,1120.3,1117.9,53.7535]
[1610337921965,73.365,1120.3,1117.9,53.7535]
[1610337922167,73.365,1120.3,1118.0,1.36019797]
[1610337922363,4.00959,1118.9,1118.1,4.00959]
[1610337922565,1.584,1119.6,1118.1,4.00959]
[1610337923669,1.584,1119.6,1118.2,1.36063777]
[1610337924466,4.00959,1119.3,1118.6,4.00959]
[1610337924666,5.79169,1119.3,1118.6,4.00959]
[1610337925667,5.79169,1119.3,1118.2,1.36063777]
[1610337926370,4.00959,1118.6,1118.2,4.00959]
[1610337926568,1.7937,1119.1,1118.2,4.00959]
[1610337927170,9.678,1119.1,1118.2,4.00959]
[1610337927370,9.678,1119.1,1118.0,1.7906]
[1610337927570,9.678,1119.1,1116.9,50.0656]
[1610337927971,9.678,1119.1,1118.3,3.60871878]
[1610337928372,4.00959,1118.4,1118.3,3.60871878]
[1610337929375,4.00959,1118.4,1118.3,2.25131878]
[1610337930374,4.00959,1118.4,1118.3,0.00391878]
[1610337930576,4.00959,1118.4,1118.0,4.00959]
[1610337930577,4.00959,1118.4,1118.0,3.85849]
[1610337931077,5.77359,1118.4,1118.0,3.85849]
[1610337931777,5.77359,1118.4,1116.9,50.0656]
[1610337932385,5.77359,1118.4,1117.1,4.00959]
[1610337932386,4.00959,1117.4,1117.1,4.00959]
[1610337932785,4.00959,1117.4,1116.9,50.0656]
[1610337933379,4.00959,1117.4,1117.0,1.36284442]
[1610337933778,1.8017,1117.4,1117.0,1.36284442]
[1610337936180,1.8017,1117.4,1116.9,50.0656]
[1610337936380,4.00959,1117.1,1116.6,1.6655]
[1610337936582,4.00959,1117.1,1116.3,1.6751]
[1610337937384,4.00959,1117.1,1116.4,1.3635524]
[1610337937583,5.81779,1117.1,1116.4,1.3635524]
[1610337937982,5.81779,1117.1,1116.3,5.24e-05]
[1610337938384,4.00959,1116.4,1115.8,53.7153]
[1610337938786,4.00959,1116.4,1115.9,0.00862035]
[1610337939584,5.78359,1116.4,1115.9,0.00862035]
[1610337940084,5.78359,1116.4,1115.8,53.7153]
[1610337940385,4.00959,1115.9,1115.8,53.7153]
[1610337941486,5.78279,1115.9,1115.1,2.237]
[1610337942089,5.78279,1115.9,1115.1,0.64]
[1610337942489,1.7732,1115.9,1115.3,4.00959]
[1610337942689,2.3476,1116.0,1115.3,4.00959]
[1610337943694,2.3476,1116.0,1114.8,1.6144]
[1610337944295,4.1239,1116.0,1114.8,1.6144]
[1610337944496,4.00959,1115.8,1114.8,1.6144]
[1610337945695,4.00959,1115.8,1114.9,1.36466548]
[1610337946496,4.00959,1115.8,1115.5,4.00959]
[1610337946696,4.00959,1115.8,1114.9,1.36466548]
[1610337946999,4.00959,1115.8,1114.6,2.2072]
[1610337948497,1.7883,1115.9,1115.6,4.00959]
[1610337948697,3.7337,1116.4,1115.6,4.00959]
[1610337948898,3.7337,1116.4,1114.9,1.6998]
[1610337949498,3.7337,1116.4,1114.9,1.3535]
[1610337949699,3.7337,1116.4,1114.9,0.9056]
[1610337949897,3.7337,1116.4,1115.0,1.36489031]
[1610337950498,3.7337,1116.4,1115.4,4.00959]
[1610337950798,3.7337,1116.4,1115.0,1.36489031]
[1610337951198,3.7337,1116.4,1114.7,1.364816]
[1610337952599,3.7337,1116.4,1115.4,4.00959]
[1610337953000,3.7337,1116.4,1115.4,9e-05]
[1610337953400,3.7337,1116.4,1114.9,1.7257]
[1610337953801,3.7337,1116.4,1115.0,1.36423248]
[1610337954602,3.7337,1116.4,1116.2,4.00959]
[1610337954805,3.7337,1116.4,1116.2,5.79889]
[1610337955003,2.1191,1116.8,1116.2,4.00959]
[1610337955203,1.8082,1117.1,1116.2,5.59639]
[1610337956603,1.8082,1117.1,1117.0,4.00959]
[1610337956802,4.00959,1117.2,1117.0,4.00959]
[1610337957004,4.00959,1117.2,1116.6,1.9448]
[1610337957804,5.81089,1117.2,1116.6,1.9448]
[1610337958008,4.00959,1117.2,1116.7,1.36290206]
[1610337958505,4.00959,1116.8,1116.7,0.39900206]
[1610337958705,3.945,1117.7,1116.4,4.00959]
[1610337959106,2.1764,1117.7,1116.4,4.00959]
[1610337959306,74.641,1117.8,1116.4,4.00959]
[1610337959906,74.641,1117.8,1116.4,5.77439]
[1610337960306,74.641,1117.8,1116.4,4.00959]
[1610337960706,4.00959,1117.4,1117.2,4.00959]
[1610337960907,74.641,1117.8,1117.2,4.00959]
[1610337961107,1.8036,1118.5,1117.2,5.81369]
[1610337961306,78.4625,1118.8,1117.2,5.81369]
[1610337961509,76.6911,1118.8,1117.2,5.81369]
[1610337962412,76.6911,1118.8,1117.3,1.36126832]
[1610337962413,74.8714,1118.8,1117.3,1.36126832]
[1610337962614,74.8714,1118.8,1118.3,4.00959]
[1610337962812,74.8714,1118.8,1118.3,5.97289]
[1610337963814,74.8714,1118.8,1118.4,1.36056546]
[1610337964614,74.8714,1118.8,1118.7,4.00959]
[1610337964815,4.00959,1120.0,1118.7,6.00259]
[1610337965413,5.78549,1120.0,1118.7,6.00259]
[1610337965613,4.00959,1120.0,1118.7,6.00259]
[1610337966415,4.00959,1120.0,1118.8,1.35988666]
[1610337966615,4.00959,1120.0,1119.5,4.00959]
[1610337966817,4.00959,1120.0,1119.5,6.41069]
[1610337967821,72.9933,1120.9,1119.5,8.21369]
[1610337968017,72.9933,1120.9,1119.5,6.41069]
[1610337968617,77.00289,1120.9,1120.7,4.00959]
[1610337968817,72.9933,1120.9,1120.7,5.71099]
[1610337969019,33.995,1122.1,1120.7,5.71099]
[1610337969620,25.68501977,1124.2,1120.7,5.71099]
[1610337969819,1.7612,1124.2,1120.7,5.71099]
[1610337970021,1.7884,1123.8,1120.7,5.71099]
[1610337970422,1.26904953,1124.5,1120.7,5.71099]
[1610337970620,4.00959,1122.1,1121.6,4.00959]
[1610337971019,4.00959,1122.1,1121.6,2.90329]
[1610337971219,4.00959,1122.1,1120.7,1.7014]
[1610337972623,1.7758,1122.5,1121.2,4.00959]
[1610337972624,4.00959,1121.7,1121.2,4.00959]
[1610337973025,3.562,1122.5,1121.2,4.00959]
[1610337973225,3.562,1122.5,1121.2,5.51839]
[1610337973824,33.562,1122.5,1121.2,1.5088]
[1610337974024,33.562,1122.5,1119.5,2.4011]
[1610337974225,33.562,1122.5,1121.0,2.152]
[1610337974625,4.00959,1121.1,1121.0,0.944]
[1610337974826,4.00959,1121.1,1119.5,2.4011]
[1610337975025,34.00959,1121.1,1117.9,0.1999189]
[1610337975225,34.00959,1121.1,1117.6,0.20018626]
[1610337975425,34.00959,1121.1,1117.5,0.20033576]
[1610337975826,34.00959,1121.1,1118.0,1.35914826]
[1610337976025,35.76689,1121.1,1118.0,1.35914826]
[1610337976226,35.76689,1121.1,1118.0,3.76344826]
[1610337976626,1.7573,1121.1,1119.3,4.00959]
[1610337976826,1.6637,1120.8,1119.3,4.00959]
[1610337977028,1.6637,1120.8,1119.3,6.46319]
[1610337978230,1.6637,1120.8,1119.3,2.4536]
[1610337978426,3.4732,1120.8,1119.3,2.4536]
[1610337978628,4.00959,1119.5,1119.4,1.35950073]
[1610337979828,5.81729,1119.5,1119.3,2.4536]
[1610337980428,5.81729,1119.5,1118.0,2.4043]
[1610337980429,4.00959,1119.5,1118.0,2.4043]
[1610337980633,4.00959,1118.5,1118.3,4.00959]
[1610337980830,4.00959,1118.5,1118.0,2.4043]
[1610337981227,4.00959,1118.5,1118.1,1.36031879]
[1610337981829,5.79319,1118.5,1118.1,1.36031879]
[1610337982629,4.00959,1118.2,1118.1,1.36031879]
[1610337983730,5.81279,1118.2,1118.1,1.36031879]
[1610337984329,5.81279,1118.2,1117.8,1.36118666]
[1610337984530,1.8032,1118.2,1117.8,1.36118666]
[1610337984731,4.00959,1118.8,1118.1,4.00959]
[1610337985331,62.6147,1119.2,1118.1,4.00959]
[1610337985531,60.5143,1119.2,1118.2,1.36041676]
[1610337985733,62.3143,1119.2,1118.2,1.36041676]
[1610337985936,1.8,1119.2,1118.2,1.36041676]
[1610337986133,1.7961,1119.8,1118.2,1.36041676]
[1610337986333,1.8043,1120.1,1118.2,1.36041676]
[1610337986533,65.228,1120.4,1118.2,1.36041676]
[1610337986735,65.228,1120.4,1118.2,3.13421676]
[1610337986934,65.228,1120.4,1118.3,30.0]
[1610337987135,65.228,1120.4,1118.3,32.304]
[1610337988436,67.0242,1120.4,1118.4,1.35820237]
[1610337989837,1.7962,1120.4,1118.4,1.35820237]
[1610337990036,1.0195,1120.4,1118.4,1.54584125]
[1610337990237,1.7869,1120.8,1118.4,1.54584125]
[1610337990437,53.5826,1121.8,1118.6,0.18786123]
[1610337990637,53.5826,1121.8,1118.6,2.21596123]
[1610337990838,23.90524366,1125.1,1120.0,4.00959]
[1610337991043,24.89607441,1125.3,1120.1,30.0]
[1610337991239,0.99432,1125.3,1120.1,30.0]
[1610337991640,35.7986,1124.6,1120.0,2.1543]
[1610337991839,37.3741,1124.6,1120.0,2.1543]
[1610337992039,37.3741,1124.6,1120.0,3.9463]
[1610337992240,37.3741,1124.6,1120.0,33.9463]
[1610337992440,10.03569774,1124.5,1120.1,1.35691663]
[1610337992639,11.81629774,1124.5,1120.1,1.35691663]
[1610337992839,72.863,1123.6,1120.2,56.7593]
[1610337993040,74.9631,1123.6,1120.2,86.7593]
[1610337994042,72.863,1123.6,1120.3,1.35583091]
[1610337994242,72.863,1123.6,1120.4,30.0]
[1610337995541,72.863,1123.6,1120.5,1.3551572]
[1610337996740,72.863,1123.6,1120.5,33.1428572]
[1610337998445,72.863,1123.6,1120.6,1.35518677]
[1610337998647,33.995,1124.6,1121.2,60.5507]
[1610337998847,33.995,1124.6,1121.2,62.8435]
[1610337999847,33.995,1124.6,1121.2,64.604]
[1610338004054,36.2337,1124.6,1121.2,64.604]
[1610338004454,36.2337,1124.6,1121.2,62.8435]
[1610338004654,37.9991,1124.6,1121.2,62.8435]
[1610338006856,10.03442991,1124.5,1121.2,62.8435]
[1610338007458,44.02942991,1124.5,1121.2,62.8435]
[1610338008057,10.03462002,1124.4,1121.2,62.8435]
[1610338009560,10.03462002,1124.4,1121.3,1.35672452]
[1610338009960,11.82912002,1124.4,1121.3,1.35672452]
[1610338011064,12.14332019,1124.3,1121.3,1.35672452]
[1610338012466,10.0343461,1124.0,1121.3,1.35672452]
[1610338012868,12.3021461,1124.0,1121.3,1.35672452]
[1610338013666,14.0924461,1124.0,1121.3,1.35672452]
[1610338013867,10.03390372,1123.9,1121.3,1.35672452]
[1610338014466,4.00959,1123.8,1123.0,4.00959]
[1610338016465,4.00959,1123.8,1123.5,4.00959]
[1610338017867,4.00959,1123.8,1123.2,1.8799]
[1610338018266,4.00959,1123.8,1121.2,2.2928]
[1610338018468,4.00959,1123.0,1122.9,4.00959]
[1610338018668,4.00959,1123.0,1120.8,5.84]
[1610338018867,4.00959,1123.0,1120.6,1.6816]
[1610338018868,5.78789,1123.0,1120.6,1.6816]
[1610338019269,5.78789,1123.0,1120.3,2.1161]
[1610338019467,5.78789,1123.0,1120.0,1.0]
[1610338019867,5.78789,1123.0,1120.1,0.18578372]
[1610338020067,5.78789,1123.0,1120.1,2.03108372]
[1610338020272,1.7783,1123.0,1120.1,31.8453]
[1610338020467,1.7783,1123.0,1122.5,4.00959]
[1610338020667,5.52629,1123.3,1122.5,4.00959]
[1610338021068,4.00959,1123.3,1122.5,4.00959]
[1610338022267,1.7213,1123.6,1122.6,1.35550398]
[1610338022467,4.00959,1123.6,1123.3,4.00959]
[1610338024471,4.00959,1124.2,1123.5,4.00959]
[1610338024670,4.00959,1124.2,1123.5,6.27389]
[1610338025676,6.1775,1125.7,1123.5,6.27389]
[1610338025876,5.7413,1125.8,1123.5,6.27389]
[1610338026477,4.00959,1124.8,1124.1,4.00959]
[1610338028477,4.00959,1124.6,1124.1,4.00959]
[1610338029277,2.2524,1125.1,1124.1,6.20809]
[1610338030481,0.91912273,1125.9,1124.1,6.20809]
[1610338030681,0.91912273,1125.9,1124.6,4.00959]
[1610338030882,1.8165,1125.7,1124.6,4.00959]
[1610338031080,1.8165,1125.7,1124.6,6.09529]
[1610338032084,0.91912273,1125.9,1124.6,6.09529]
[1610338032685,4.92871273,1125.9,1125.6,4.00959]
[1610338033086,0.91912273,1125.9,1125.6,4.00959]
[1610338033285,6.0515,1128.1,1125.6,4.00959]
[1610338033485,6.0515,1128.1,1125.6,5.65739]